[Event "44th Chess Olympiad Open 2022"]
[Site "Chennai"]
[Date "2022.08.01"]
[Round "4.20"]
[White "Supi, Luis Paulo"]
[Black "Hossain, Enamul"]
[Result "1-0"]
[WhiteElo "2603"]
[BlackElo "2377"]
[Annotator "TA"]
[PlyCount "105"]
[EventDate "2022.??.??"]
[TimeControl "60"]

{[%evp 21,105,14,20,18,24,28,6,12,16,8,8,14,19,14,23,0,4,0,0,0,0,0,45,0,0,0,8,
7,11,20,27,8,18,18,22,15,42,0,20,13,11,4,6,0,15,25,44,11,65,70,104,95,158,143,
238,228,357,337,239,193,364,373,371,371,377,377,377,377,377,377,377,377,377,
377,377,377,500,516,720,377,941,849,29990,29990,29990,29991]} 1. e4 {[%emt 0:
00:00]} e5 {[%emt 0:00:18]} 2. Nf3 {[%emt 0:00:26]} Nf6 {[%emt 0:00:08]} 3.
Nxe5 {[%emt 0:03:02]} d6 {[%emt 0:00:09]} 4. Nf3 {[%emt 0:00:02]} Nxe4 {
[%emt 0:00:10]} 5. d4 {[%emt 0:01:12]} d5 {[%emt 0:00:09]} 6. Bd3 {[%emt 0:00:
00]} Bd6 {[%emt 0:00:27]} 7. O-O {[%emt 0:00:28]} O-O {[%emt 0:00:10]} 8. c4 {
[%emt 0:00:09]} c6 {[%emt 0:00:13]} 9. Nc3 {[%emt 0:00:43]} Nxc3 {[%emt 0:00:
00]} 10. bxc3 {[%emt 0:00:02]} dxc4 {[%emt 0:00:20]} 11. Bxc4 {[%emt 0:00:02]}
Bf5 {[%emt 0:01:42]} 12. Bg5 $1 {[%emt 0:00:31] 12.Bg5 is better than 12.Re1.
C42: Petroff Defence: 3 Nxe5 and unusual White 3rd moves.} Qa5 {[%emt 0:01:17]}
13. d5 {[%emt 0:00:37] [#] aiming for dxc6.} Be4 {[%emt 0:01:04]} 14. dxc6 {
[%emt 0:00:26] The position is equal.} Bxf3 {[%emt 0:00:31]} 15. Qxf3 {[%emt 0:
00:00]} Nxc6 {[%emt 0:00:10]} 16. Bd5 {[%emt 0:01:24]} Rae8 {[%emt 0:13:38]}
17. Rad1 {[%emt 0:12:30]} Ne7 {[%emt 0:03:33] [#]} 18. h4 $146 {[%emt 0:06:24]}
({Predecessor:} 18. Bxe7 Rxe7 19. g3 Qc7 20. h4 g6 21. h5 Kg7 22. Kg2 h6 23.
Rfe1 b6 {½-½ (23) Leoni,R (2267)-Steinke,R (2362) LSS email 2018}) 18... Nxd5
{[%emt 0:06:07]} 19. Rxd5 {[%emt 0:00:47]} Qa6 {[%emt 0:05:50][%cal Yd6h2]} 20.
Rfd1 {[%emt 0:18:04]} Be7 {[%emt 0:05:10]} 21. Qg3 {[%emt 0:07:06]} f6 {
[%emt 0:23:04]} 22. Bh6 {[%emt 0:02:37][%csl Gh6][%cal Rg3g7] [#]} Rf7 {
[%emt 0:00:14]} 23. R1d2 {[%emt 0:03:27]} Bf8 {[%emt 0:06:55]} 24. Be3 {
[%emt 0:02:30]} Qa3 {[%emt 0:04:09]} 25. R5d3 {[%emt 0:07:46]} (25. Rd8 {
keeps more tension.} Rxd8 26. Rxd8 Qxa2 27. Qb8) 25... b6 {[%emt 0:07:39]} 26.
Qf3 {[%emt 0:06:23]} Qa4 {[%emt 0:03:04]} 27. Rd4 {[%emt 0:00:55]} Qb5 {
[%emt 0:01:25]} 28. a4 {[%emt 0:02:26]} Qe5 {[%emt 0:04:31]} 29. Rc4 {[%emt 0:
00:00]} Rc7 {[%emt 0:04:48]} 30. Rxc7 {[%emt 0:04:23]} Qxc7 {[%emt 0:00:01]}
31. Qd5+ {[%emt 0:00:16]} Qf7 {[%emt 0:00:43]} 32. Qc6 {[%emt 0:00:39]} Re6 {
[%emt 0:01:06]} 33. Qf3 {[%emt 0:03:29]} Qc7 {[%emt 0:02:09]} 34. Qd5 {[%emt 0:
00:00]} Qf7 {[%emt 0:00:35]} (34... Qc6 $11) 35. a5 $1 $14 {[%emt 0:00:00]} h5
{[%emt 0:03:02] White stays focused until the end.} 36. a6 {[%emt 0:00:22]} Re7
{[%emt 0:00:55]} (36... Kh7 $142) 37. Qf3 $16 {[%emt 0:01:49] White is much
more active.} Rc7 {[%emt 0:00:15]} (37... Re8 $16) 38. Rd8 $18 {[%emt 0:01:07]}
Rxc3 {[%emt 0:00:57]} (38... Rd7 {was worth a try.} 39. Rxd7 Qxd7) 39. Qb7 {
[%emt 0:00:10]} Qc7 {[%emt 0:00:47]} 40. Re8 {[%emt 0:05:04] And now g3 would
win.} Rc6 $2 {[%emt 0:00:35]} (40... Qd6) 41. Qa8 {[%emt 0:30:44]} Rc1+ {
[%emt 0:01:05]} 42. Bxc1 {[%emt 0:00:00]} Qxc1+ {[%emt 0:00:01] Endgame KQR-KQB
} 43. Kh2 {[%emt 0:00:00]} Qf4+ {[%emt 0:00:06]} 44. g3 {[%emt 0:00:00]} Qxf2+
{[%emt 0:00:07]} 45. Qg2 {[%emt 0:00:00]} Qc5 {[%emt 0:00:00]} 46. Rd8 {
[%emt 0:00:00]} Kh7 {[%emt 0:12:12]} 47. Rd5 {[%emt 0:00:00]} (47. Qa2 b5 48.
Rd5 Qc4 49. Rxh5+ Kg6 50. Qxc4 bxc4 $18) 47... Qc4 {[%emt 0:00:00]} 48. Rxh5+ {
[%emt 0:00:00]} Kg6 {[%emt 0:00:03]} 49. Rh8 {[%emt 0:00:00]} ({Less strong is
} 49. Qf3 Qxa6 50. Rd5 Qa2+ 51. Kh3 Kf7 $18) 49... Bc5 {[%emt 0:00:00]} 50. Qf3
{[%emt 0:00:00][%csl Gh8][%cal Rf3h5] Prevents Qd3.} Qc2+ $2 {[%emt 0:07:36]} (
50... Qa2+ 51. Kh3 Qe6+ 52. Qg4+ Qxg4+ 53. Kxg4 f5+ 54. Kf3 Bg1) 51. Kh3 {
[%emt 0:00:00][%csl Gh8][%cal Rf3h5]} Kf7 {[%emt 0:02:22]} 52. Qd5+ {[%emt 0:
00:00]} Ke7 {[%emt 0:00:03]} 53. Rc8 {[%emt 0:01:25] Weighted Error Value:
White=0.16 (very precise) /Black=0.42} 1-0

[Event "44th Chess Olympiad Open 2022"]
[Site "Chennai"]
[Date "2022.08.01"]
[Round "4.20"]
[White "Mekhitarian, Krikor Sevag"]
[Black "Zia, Tahsin Tajwar"]
[Result "1-0"]
[WhiteElo "2542"]
[BlackElo "2307"]
[Annotator "TA"]
[PlyCount "117"]
[EventDate "2022.??.??"]
[TimeControl "60"]

{[%evp 9,117,25,22,24,33,30,29,31,23,33,33,32,35,28,32,31,34,31,28,16,26,4,4,0,
12,10,16,25,26,27,27,10,9,0,0,0,14,0,0,0,0,0,4,13,2,0,15,0,16,3,10,0,8,0,8,8,9,
11,13,0,0,0,7,0,0,0,0,0,9,17,20,20,23,12,21,25,27,15,53,45,105,103,133,136,129,
129,129,83,212,142,201,201,187,171,185,153,145,139,257,250,247,240,286,283,471,
257,250,230,891,810]} 1. d4 {[%emt 0:00:05]} d5 {[%emt 0:00:16]} 2. c4 {
[%emt 0:00:03]} e6 {[%emt 0:00:06]} 3. Nf3 {[%emt 0:00:33]} Nf6 {[%emt 0:00:23]
} 4. Nc3 {[%emt 0:00:08]} a6 {[%emt 0:01:17]} 5. cxd5 {[%emt 0:00:14]} exd5 {
[%emt 0:00:07]} 6. Bg5 {[%emt 0:00:04] D37: Queen's Gambit Declined: 5 Bf4.}
Be6 {[%emt 0:00:30]} 7. e3 {[%emt 0:00:14]} Nbd7 {[%emt 0:00:43]} 8. Bd3 {
[%emt 0:00:21] White has an edge.} c6 {[%emt 0:02:59]} 9. h3 {[%emt 0:02:08]}
Bd6 {[%emt 0:01:02]} 10. Bf4 {[%emt 0:01:06]} Qc7 {[%emt 0:00:47]} 11. Bxd6 {
[%emt 0:00:04]} Qxd6 {[%emt 0:00:05]} 12. O-O {[%emt 0:00:03]} O-O {[%emt 0:00:
00]} 13. Qb3 {[%emt 0:00:06]} Rab8 {[%emt 0:12:47]} 14. a4 {[%emt 0:00:09]} a5
{[%emt 0:09:38]} 15. Qa3 {[%emt 0:01:51] [#]} Qxa3 $146 {[%emt 0:03:40]} ({
Predecessor:} 15... Ne8 16. Rfb1 Qxa3 17. Rxa3 Nd6 18. b4 Ra8 19. b5 c5 20.
dxc5 Nxc5 21. Rd1 Rfd8 {0-1 (63) Giri,A (2764)-Izoria,Z (2602) Chess.com INT
2020}) 16. Rxa3 {[%emt 0:02:21]} h6 {[%emt 0:04:11]} 17. Rb1 {[%emt 0:00:34]}
Ne8 {[%emt 0:02:52]} 18. b4 {[%emt 0:13:30]} axb4 {[%emt 0:00:54]} 19. Rxb4 {
[%emt 0:00:02]} Nd6 {[%emt 0:00:59]} 20. Ra1 {[%emt 0:04:56]} Rfc8 {[%emt 0:00:
00]} 21. Rb2 {[%emt 0:09:36]} Ra8 {[%emt 0:11:07]} 22. Ne5 {[%emt 0:04:30]} f6
{[%emt 0:01:09]} 23. Nxd7 {[%emt 0:14:42]} Bxd7 {[%emt 0:00:06]} 24. g4 {
[%emt 0:04:23]} Ra7 {[%emt 0:03:02]} 25. Rab1 {[%emt 0:01:43]} Rca8 {[%emt 0:
00:00]} 26. f3 {[%emt 0:00:38]} Ra5 {[%emt 0:01:13]} 27. Kf2 {[%emt 0:07:05]
[%cal Yg1f2,Yf2e2,Ye2d2]} Kf8 {[%emt 0:03:29]} 28. Ke2 {[%emt 0:15:44]} Ke7 {
[%emt 0:01:22]} 29. Rg1 {[%emt 0:00:19][%cal Yb1g1,Yg1g2,Yg2h2]} Kf8 {[%emt 0:
01:44]} 30. Kd2 {[%emt 0:00:21]} Re8 {[%emt 0:03:12]} 31. Rb6 {[%emt 0:01:30]}
Ke7 {[%emt 0:02:13][%cal Yf8e7,Ye7d8,Yd8c7,Yc7b8]} 32. h4 {[%emt 0:01:13]} Kd8
{[%emt 0:01:31]} 33. Rbb1 {[%emt 0:00:49]} Kc7 {[%emt 0:01:11]} 34. Rg2 {
[%emt 0:00:58]} Re7 {[%emt 0:01:28]} 35. Rc1 {[%emt 0:00:00]} Kb8 {[%emt 0:01:
01]} 36. g5 {[%emt 0:01:33]} hxg5 {[%emt 0:00:39]} 37. hxg5 {[%emt 0:00:01]} f5
{[%emt 0:00:54]} 38. Rh2 {[%emt 0:00:33]} Re8 {[%emt 0:01:29]} 39. Rh7 {
[%emt 0:01:09]} Rg8 {[%emt 0:00:30]} 40. Rch1 {[%emt 0:01:21]} Kc7 {[%emt 0:00:
53]} 41. Rh8 {[%emt 0:06:59]} Raa8 {[%emt 0:00:00]} 42. Rxg8 {[%emt 0:07:31]}
Rxg8 {[%emt 0:00:03]} 43. Ne2 {[%emt 0:01:18]} Be8 {[%emt 0:15:38]} 44. Nf4 {
[%emt 0:00:34]} Kd7 {[%emt 0:00:35]} ({Better is} 44... Kb6 $14) 45. a5 $16 {
[%emt 0:00:45]} Ke7 {[%emt 0:02:23]} 46. Kc3 {[%emt 0:05:35]} Bd7 {[%emt 0:08:
40]} 47. Ng6+ {[%emt 0:02:07]} Kd8 {[%emt 0:00:00]} 48. Rh7 {[%emt 0:05:14]
White is more active.} (48. Ne5 $142) 48... Be8 {[%emt 0:01:01] Loses the game.
} (48... Nf7 $16 {was worth a try.}) 49. Ne5 {[%emt 0:02:12]} Bd7 {[%emt 0:01:
07]} (49... Kc7 $16 {is a better defense.} 50. Kb4 Kb8) 50. Kb4 $18 {[%emt 0:
00:44]} Be8 {[%emt 0:01:43]} 51. Kc5 {[%emt 0:00:00]} Kc7 {[%emt 0:00:08]} 52.
Bc2 {[%emt 0:01:03]} Bd7 {[%emt 0:00:26]} 53. Bb1 {[%emt 0:00:16]} Be8 {
[%emt 0:00:41]} (53... Be6 $16 54. Bc2 Nc8) 54. Bd3 {[%emt 0:00:20]} Bd7 {
[%emt 0:00:12] [#]} 55. Ng6 $1 {[%emt 0:01:58]} Nf7 {[%emt 0:00:28]} 56. f4 {
[%emt 0:00:25] Strongly threatening Ne7.} Kd8 {[%emt 0:00:00] Prevents Ne7.} (
56... Nd8 57. Kb4 Kd6) 57. Kb6 {[%emt 0:00:16]} (57. Bc2 $142 Be6 58. a6 bxa6
59. Ba4) 57... Nd6 {[%emt 0:00:36]} 58. Ne5 {[%emt 0:00:00]} Nc8+ $2 {[%emt 0:
00:38] [#]} (58... Be8 59. a6 bxa6 60. Nxc6+ (60. Bxa6 Ke7 $16) 60... Kd7) 59.
Kxb7 {[%emt 0:00:21] Weighted Error Value: White=0.10 (very precise) /Black=0.
17 (very precise)} 1-0

[Event "44th Chess Olympiad Open 2022"]
[Site "Chennai"]
[Date "2022.08.01"]
[Round "4.20"]
[White "Rahman, Ziaur"]
[Black "Fier, Alexandr"]
[Result "1-0"]
[WhiteElo "2424"]
[BlackElo "2567"]
[Annotator "TA"]
[PlyCount "125"]
[EventDate "2022.??.??"]
[TimeControl "60"]

{[%evp 10,125,21,2,4,6,11,-3,-7,0,11,14,56,54,36,47,35,38,61,61,53,18,29,-12,7,
6,8,3,10,10,43,51,45,42,51,38,87,48,63,27,99,85,106,97,91,58,127,131,143,136,
187,170,199,204,191,171,186,189,201,199,204,194,183,181,179,139,164,141,150,
157,163,156,199,176,318,316,316,317,318,318,359,329,349,279,359,318,321,257,
234,189,190,213,229,229,748,743,657,642,29963,29965,29951,29952,11872,11230,
29969,1160,29973,29974,29980,29981,29981,29979,29984,29985,29985,29986,29986,
29987]} 1. Nf3 {[%emt 0:00:13]} d5 {[%emt 0:00:06]} 2. g3 {[%emt 0:01:47]} g6 {
[%emt 0:00:05]} 3. Bg2 {[%emt 0:00:37]} Bg7 {[%emt 0:00:05]} 4. d4 {[%emt 0:00:
00]} c6 {[%emt 0:00:07]} 5. O-O {[%emt 0:00:18]} Nf6 {[%emt 0:01:15]} 6. c4 {
[%emt 0:01:11]} dxc4 {[%emt 0:00:00] D73: Fianchetto Grünfeld: 5 Nf3 .} 7. a4
{[%emt 0:00:18]} Ne4 {[%emt 0:00:00]} 8. Nc3 {[%emt 0:05:18] White has
compensation.} Nd6 {[%emt 0:05:14] The position is equal.} 9. e4 {[%emt 0:00:
00][%cal Ye2e4,Ye4e5]} O-O {[%emt 0:03:35]} 10. e5 {[%emt 0:06:04] [#]} (10.
Qe2 {is interesting.} Bg4 11. Rd1 e5 12. dxe5 Bxe5 13. Bf4) 10... Nf5 $146 {
[%emt 0:03:59]} ({Predecessor:} 10... Ne8 11. Qe2 Nc7 12. Rd1 Nba6 13. a5 Qe8
14. Nd2 Be6 15. Nxc4 Rd8 16. h3 f5 {½-½ (41) Even,R (2474)-Panitevsky,I 
(2535) ICCF email 2019}) 11. g4 {[%emt 0:03:12]} Nh6 {[%emt 0:00:04]} 12. h3 {
[%emt 0:00:13]} Na6 {[%emt 0:04:36]} 13. Qe2 {[%emt 0:06:55]} Nb4 {[%emt 0:00:
00]} 14. Qxc4 {[%emt 0:00:59]} a5 {[%emt 0:00:04]} 15. Bg5 {[%emt 0:05:50]
[%cal Yc1g5,Yg5h4,Yh4g3]} Kh8 {[%emt 0:02:03]} 16. Rfd1 {[%emt 0:00:00]} Be6 {
[%emt 0:01:02] Inhibits d5.} 17. Qe2 {[%emt 0:00:19]} Bb3 {[%emt 0:00:00]} 18.
Rd2 {[%emt 0:01:49]} f6 {[%emt 0:00:07]} 19. Bh4 {[%emt 0:02:31]} Nd5 {[%emt 0:
07:17]} 20. Bg3 {[%emt 0:01:05]} f5 {[%emt 0:09:02]} 21. Ra3 {[%emt 0:07:20]}
fxg4 {[%emt 0:07:09]} 22. hxg4 {[%emt 0:04:49]} Qb6 {[%emt 0:00:00]} (22...
Nxc3 $1 $14 {feels stronger.} 23. bxc3 Be6) 23. Ne4 {[%emt 0:00:00] Threatens
to win with Nc5.} Qb4 {[%emt 0:01:36]} (23... Nxg4 $2 24. Nc5 Bxa4 25. Nxa4 $18
) 24. Nfg5 $36 {[%emt 0:04:38] White is more active.} (24. Ne1 $5 {[%cal Re1d3]
}) 24... Bc4 {[%emt 0:01:30]} (24... Nf7 $1 $11) 25. Qd1 $16 {[%emt 0:00:21]}
Nf4 {[%emt 0:00:41]} 26. Bf1 {[%emt 0:01:43]} Bd5 {[%emt 0:04:37]} 27. Nc3 {
[%emt 0:09:18]} Bc4 {[%emt 0:06:08]} (27... Bg8 $1 $14) 28. Bxc4 {[%emt 0:02:
28]} Qxc4 {[%emt 0:00:02]} 29. Nce4 {[%emt 0:00:00]} Qd5 {[%emt 0:00:52]} (
29... Ne6 $16 30. Rc3 Qd5) 30. f3 $18 {[%emt 0:00:00]} Ne6 {[%emt 0:04:13]} 31.
Nxe6 {[%emt 0:01:22]} Qxe6 {[%emt 0:00:02]} 32. Qb3 {[%emt 0:00:48]} Qxb3 {
[%emt 0:02:57]} 33. Rxb3 {[%emt 0:00:05]} b5 {[%emt 0:00:02]} 34. Kg2 {[%emt 0:
00:56]} ({But not} 34. axb5 $6 cxb5 35. Kg2 b4) 34... bxa4 {[%emt 0:02:34]} 35.
Ra3 {[%emt 0:00:43][%cal Yb3a3,Ya3a4,Ya4c4]} Nf7 {[%emt 0:10:41]} 36. Rxa4 {
[%emt 0:00:34]} h5 {[%emt 0:00:19]} 37. Rc4 {[%emt 0:03:19]} hxg4 {[%emt 0:01:
06]} 38. fxg4 {[%emt 0:00:10]} Nd8 {[%emt 0:00:37]} 39. Nc5 {[%emt 0:01:24]
White is more active.} Bh6 {[%emt 0:00:00]} 40. Re2 {[%emt 0:00:19]} Kg8 {
[%emt 0:04:49]} 41. b3 {[%emt 0:31:04]} Bf4 {[%emt 0:31:52]} (41... Re8 $142
42. Be1 Kf7 43. Rf2+ Kg8) 42. Nd7 $1 {[%emt 0:00:00]} Bxg3 {[%emt 0:00:03]} 43.
Nxf8 {[%emt 0:00:52]} ({Weaker is} 43. Kxg3 Rf1 $11) 43... Kxf8 {[%emt 0:00:02]
} 44. Kxg3 {[%emt 0:00:06] Endgame KRR-KRN} Kf7 {[%emt 0:00:04]} 45. Rf2+ {
[%emt 0:03:07]} Ke8 {[%emt 0:00:00]} 46. Rc5 {[%emt 0:02:25]} Rb8 {[%emt 0:01:
15]} 47. Rxa5 {[%emt 0:03:45]} Rxb3+ {[%emt 0:00:08]} 48. Rf3 {[%emt 0:01:37]}
Rb4 {[%emt 0:00:04]} 49. d5 {[%emt 0:01:48]} cxd5 {[%emt 0:00:01]} 50. Rxd5 {
[%emt 0:00:06]} Ne6 {[%emt 0:00:00] [#]} 51. Ra5 $1 {[%emt 0:00:13] Ra8+ is
the strong threat.} Re4 $2 {[%emt 0:00:28]} (51... Nd4 52. e6 Nxe6 53. Ra8+ Kd7
54. Rd3+ Nd4) 52. Ra8+ {[%emt 0:00:51]} Kd7 {[%emt 0:00:03]} 53. Rd3+ {[%emt 0:
00:09]} Rd4 {[%emt 0:00:00]} 54. Rxd4+ {[%emt 0:03:45]} Nxd4 {[%emt 0:00:02]
KR-KN} 55. Rg8 {[%emt 0:00:00]} Ke6 {[%emt 0:00:04]} 56. Rxg6+ {[%emt 0:00:06]}
Kxe5 {[%emt 0:00:02]} 57. Kh4 {[%emt 0:01:40]} (57. Rb6 $142 Ne6 58. Rb5+ Kf6
59. Kh4 Kg7 60. Rb6 Nf4 61. Kg5 Nd5 62. Rb7) 57... Kf4 {[%emt 0:01:31] [#]} 58.
Kh5 $1 {[%emt 0:00:37] White mates.} Kg3 {[%emt 0:02:27]} 59. g5 {[%emt 0:02:
11][%cal Yg4g5,Yg5g6]} Ne2 {[%emt 0:00:42]} 60. Kh6 {[%emt 0:01:57]} e5 {
[%emt 0:00:26]} 61. Re6 {[%emt 0:01:00]} Kf4 {[%emt 0:00:07]} 62. g6 {[%emt 0:
00:25]} Nd4 {[%emt 0:00:06]} 63. Rf6+ {[%emt 0:00:06] Weighted Error Value:
White=0.10 (very precise) /Black=0.48} 1-0

[Event "44th Chess Olympiad Open 2022"]
[Site "Chennai"]
[Date "2022.08.01"]
[Round "4.20"]
[White "Murshed, Niaz"]
[Black "Lima, Darcy"]
[Result "1-0"]
[WhiteElo "2413"]
[BlackElo "2445"]
[Annotator "TA"]
[PlyCount "75"]
[EventDate "2022.??.??"]
[TimeControl "60"]

{[%evp 9,75,35,37,37,27,22,25,27,30,32,30,34,50,30,31,25,35,19,66,15,12,0,0,0,
31,-7,0,0,0,7,8,0,0,0,0,0,27,31,45,0,0,0,0,0,0,0,0,9,197,212,206,204,174,194,
273,252,297,265,292,270,314,308,274,191,29983,29983,29990,29990]} 1. d4 {
[%emt 0:00:24]} d5 {[%emt 0:00:27]} 2. Nf3 {[%emt 0:00:58]} Nf6 {[%emt 0:00:37]
} 3. c4 {[%emt 0:00:22]} dxc4 {[%emt 0:00:52]} 4. e3 {[%emt 0:01:20]} b5 {
[%emt 0:00:20]} 5. a4 {[%emt 0:03:45]} b4 {[%emt 0:00:09]} 6. Bxc4 {[%emt 0:00:
00] D25: Queen's Gambit Accepted: 4 e3: sidelines and 4...Bg4.} e6 {[%emt 0:00:
00]} 7. Nbd2 {[%emt 0:05:48]} Bb7 {[%emt 0:01:29]} 8. a5 {[%emt 0:09:30] White
has an edge.} a6 {[%emt 0:05:56] Inhibits Bb5+.} 9. O-O {[%emt 0:06:59]} Be7 {
[%emt 0:02:13]} 10. Qe2 {[%emt 0:06:45]} O-O {[%emt 0:02:22]} 11. Nb3 {[%emt 0:
00:00]} Nbd7 {[%emt 0:04:16]} 12. Bd2 {[%emt 0:02:56]} Qb8 {[%emt 0:24:00]} 13.
Rfc1 {[%emt 0:06:28]} Rc8 {[%emt 0:00:20]} (13... c5 $11) 14. Bd3 {[%emt 0:00:
00]} (14. Ne1 $1 $14) 14... c5 {[%emt 0:03:44]} 15. dxc5 {[%emt 0:03:10]} Nxc5
{[%emt 0:06:59]} 16. Nxc5 {[%emt 0:02:01]} Bxc5 {[%emt 0:02:02] [#]} 17. h3
$146 {[%emt 0:01:45]} ({Predecessor:} 17. Rc4 Bd5 18. Rh4 Bxf3 19. gxf3 Qe5 20.
Kh1 Qxb2 21. Rb1 Qe5 22. Bxb4 Bxb4 23. Rbxb4 {0-1 (31) Niklasch,O (2235)
-Zimmermann,U (2298) Wuerttemberg 2013}) 17... Qd6 {[%emt 0:19:56]} 18. Be1 {
[%emt 0:00:34]} e5 {[%emt 0:03:09]} 19. Rd1 {[%emt 0:07:55][%cal Yd3h7]
Threatens to win with Bxh7+!} Qe7 {[%emt 0:00:52] Strongly threatening ...e4.}
20. Bc4 {[%emt 0:00:18]} h6 {[%emt 0:01:40] Inhibits Ng5.} 21. Rac1 {[%emt 0:
00:00]} e4 {[%emt 0:04:18]} 22. Nh4 {[%emt 0:01:33][%cal Yf3h4,Yh4f5,Yf5d4,
Yd4c2,Yc2b4]} Kf8 {[%emt 0:05:55]} 23. Nf5 {[%emt 0:01:40]} Qe5 {[%emt 0:01:39]
} 24. Nd4 {[%emt 0:00:47]} (24. Ng3 $5 {[%cal Re2c2]}) 24... Bd6 {[%emt 0:00:
49] ( -> ...Qh2+)} 25. g3 {[%emt 0:00:04]} Kg8 {[%emt 0:02:19]} 26. Nc2 {
[%emt 0:02:21]} Qe7 {[%emt 0:01:03]} 27. b3 {[%emt 0:01:33]} Rd8 {[%emt 0:00:
00]} 28. Rd4 {[%emt 0:03:45] Rcd1 is the strong threat.} h5 $2 {[%emt 0:00:00]
[#] This move loses the game for Black.} (28... Nd7 $1 $11 {and Black has
nothing to worry.}) 29. Rcd1 $1 $18 {[%emt 0:01:26][%cal Yc1d1,Yd1d4,Yd4d6,
Yd6g6]} h4 {[%emt 0:00:13] [#]} 30. Nxb4 $1 {[%emt 0:01:48]} hxg3 {[%emt 0:00:
55] [#]} 31. fxg3 {[%emt 0:00:04][%cal Rc4a6]} Bxb4 {[%emt 0:00:00]} (31... Bc5
{was necessary.}) (31... Be5 32. Rxd8+) 32. Bxb4 {[%emt 0:00:00]} Qc7 {[%emt 0:
00:01]} 33. Qf2 {[%emt 0:04:14] Black must now prevent g4.} ({Don't do} 33.
Rxd8+ $6 Rxd8 34. Kh2 (34. Rxd8+ Qxd8 35. Be1 Ne8 $16) 34... Rd7 $16) 33...
Rxd4 {[%emt 0:00:34]} 34. Rxd4 {[%emt 0:00:04]} Bc6 {[%emt 0:00:00]} 35. Qf4 {
[%emt 0:01:34]} Qb7 {[%emt 0:00:12]} 36. Bc3 {[%emt 0:00:11] Hoping for Rd6. A
strong pair of Bishops.} Nh7 $2 {[%emt 0:01:39]} (36... Bb5 $18 37. Rd2 Ne8)
37. Rd6 {[%emt 0:01:02]} Rc8 {[%emt 0:00:37]} 38. Rg6 {[%emt 0:02:11] Weighted
Error Value: White=0.08 (flawless) /Black=0.35} 1-0

[Event "44th Chess Olympiad Open 2022"]
[Site "Chennai"]
[Date "2022.08.01"]
[Round "4.21"]
[White "Kuybokarov, Temur"]
[Black "Mieles Palau, Daniel"]
[Result "1-0"]
[WhiteElo "2583"]
[BlackElo "2364"]
[Annotator "TA"]
[PlyCount "59"]
[EventDate "2022.??.??"]
[TimeControl "60"]

{[%evp 20,59,22,17,24,22,37,25,27,19,27,33,45,41,87,80,84,76,90,98,82,90,95,91,
107,84,89,97,127,121,486,466,472,480,450,448,1476,1390,1350,1313,29988,16]} 1.
e4 {[%emt 0:00:04]} c5 {[%emt 0:00:14]} 2. Nf3 {[%emt 0:00:10]} Nc6 {[%emt 0:
00:00]} 3. Bb5 {[%emt 0:00:10]} g6 {[%emt 0:02:41]} 4. O-O {[%emt 0:00:11]} Bg7
{[%emt 0:00:03]} 5. c3 {[%emt 0:00:10]} Nf6 {[%emt 0:01:34]} 6. Re1 {[%emt 0:
00:00]} O-O {[%emt 0:00:24]} 7. d4 {[%emt 0:00:26]} cxd4 {[%emt 0:01:47]} 8.
cxd4 {[%emt 0:00:08]} d5 {[%emt 0:00:17]} 9. e5 {[%emt 0:00:15]} Ne4 {[%emt 0:
00:00]} 10. Nc3 {[%emt 0:00:16]} Nxc3 {[%emt 0:02:53]} 11. bxc3 {[%emt 0:00:08]
} Bf5 {[%emt 0:10:06] B31: Sicilian: 2...Nc6 3 Bb5 g6.} 12. Bxc6 {[%emt 0:00:
00]} bxc6 {[%emt 0:00:09]} 13. Ba3 {[%emt 0:00:53]} Re8 {[%emt 0:17:45] White
has an edge.} 14. Nd2 {[%emt 0:13:27][%cal Yf3d2,Yd2b3,Yb3c5] [#]} Qa5 $146 {
[%emt 0:07:17]} ({Predecessor:} 14... Qc8 15. Qe2 a5 16. Nb3 Qa6 17. Qe3 Qd3
18. Qxd3 Bxd3 19. Nc5 Bf5 20. f4 Ra7 {1-0 (61) Shtyrenkov,V-Zhukhovitsky,S
Anapa 1981}) 15. Bb4 {[%emt 0:04:11]} Qa6 {[%emt 0:00:22]} 16. Nb3 {[%emt 0:00:
00]} Qa4 {[%emt 0:12:56]} (16... f6 $14) 17. g4 $16 {[%emt 0:17:39]} Bc8 {
[%emt 0:02:10] [#]} 18. Qf3 $1 {[%emt 0:02:18]} a5 {[%emt 0:04:30]} 19. Nc5 {
[%emt 0:00:05]} Qb5 {[%emt 0:04:56]} 20. a4 {[%emt 0:00:07]} Qc4 {[%emt 0:00:
00]} 21. Ba3 {[%emt 0:00:08] White is much more active. The black rooks are
badly placed.} Rb8 {[%emt 0:03:23]} 22. h4 $40 {[%emt 0:04:45] White wants a
kill.} Bh6 {[%emt 0:08:43]} 23. Bc1 {[%emt 0:01:49] Against Bd2} Bf8 {[%emt 0:
02:31]} 24. h5 {[%emt 0:03:33] [#] Strongly threatening hxg6.} Rb3 $2 {[%emt 0:
06:17]} 25. hxg6 $18 {[%emt 0:01:55]} hxg6 {[%emt 0:00:52]} 26. Nxb3 {[%emt 0:
00:53]} Qxb3 {[%emt 0:00:02]} 27. Kg2 {[%emt 0:00:31]} Be6 {[%emt 0:01:07]} (
27... Bg7 $142 28. Bg5 Qc4) 28. Rh1 {[%emt 0:00:32] Threatening mate with Qh3.}
Bg7 {[%emt 0:01:18]} 29. Qh3 {[%emt 0:02:03] White threatens Qh7+ and mate.}
Qc2 {[%emt 0:00:12]} 30. Qh7+ {[%emt 0:00:17] Black did not feel at home in
the position after the opening. Weighted Error Value: White=0.01 (flawless) /
Black=0.97. Loss on time!?} 1-0